lending/lending_fUSD_20240622
["ID","MTS","AMOUNT","RATE_DAILY","PERIOD"]
[330178529,1719083434942,-151.0,0.0002166,2]
[330178530,1719083434951,-151.0,0.0002166,2]
[330178531,1719083434960,-151.0,0.0002166,2]
[330178532,1719083434968,-151.0,0.0002166,2]
[330178533,1719083434978,-151.0,0.0002166,2]
[330178534,1719083434988,-479.764918,0.0002166,2]
[330178535,1719083434997,-479.764918,0.0002166,2]
[330178536,1719083435007,-151.0,0.0002166,2]
[330178537,1719083435017,-151.0,0.0002166,2]
[330178538,1719083435028,-151.0,0.0002166,2]
[330178539,1719083435037,-246597.006485,0.0002166,2]
[330178540,1719083435047,-201.6567933,0.0002166,2]
[330178541,1719083435056,-11208.9548402,0.00021661,2]
[330178542,1719083435066,-365.18124254,0.00021669,2]
[330178543,1719083435075,-151.0,0.0002167,2]
[330178544,1719083435084,-151.0,0.0002167,2]
[330178545,1719083435093,-151.0,0.0002167,2]
[330178546,1719083435103,-151.0,0.0002167,2]
[330178547,1719083435112,-151.0,0.0002167,2]
[330178548,1719083435122,-151.0,0.0002167,2]
[330178549,1719083435132,-151.0,0.0002167,2]
[330178550,1719083435141,-151.0,0.0002167,2]
[330178551,1719083435154,-151.0,0.0002167,2]
[330178552,1719083435163,-151.0,0.0002167,2]
[330178553,1719083435172,-157.910289,0.0002167,2]
[330178554,1719083435182,-206.439814,0.0002167,2]
[330178555,1719083435193,-151.0,0.0002167,2]
[330178556,1719083435203,-230.570928,0.0002167,2]
[330178557,1719083435213,-151.0,0.0002167,2]
[330178558,1719083435222,-151.0,0.0002167,2]
[330178559,1719083435234,-155.688602,0.0002167,2]
[330178560,1719083435243,-155.688602,0.0002167,2]
[330178561,1719083435253,-155.688602,0.0002167,2]
[330178562,1719083435262,-155.688602,0.0002167,2]
[330178563,1719083435272,-151.0,0.0002167,2]
[330178564,1719083435282,-155.688602,0.0002167,2]
[330178565,1719083435292,-151.0,0.0002167,2]
[330178566,1719083435302,-155.688602,0.0002167,2]
[330178567,1719083435311,-155.688602,0.0002167,2]
[330178568,1719083435321,-155.688602,0.0002167,2]
[330178569,1719083435330,-176.08934,0.0002167,2]
[330178570,1719083435340,-176.08934,0.0002167,2]
[330178571,1719083435349,-176.08934,0.0002167,2]
[330178572,1719083435359,-176.08934,0.0002167,2]
[330178573,1719083435369,-176.08934,0.0002167,2]
[330178574,1719083435378,-176.08934,0.0002167,2]
[330178575,1719083435388,-177.533914,0.0002167,2]
[330178576,1719083435397,-176.08934,0.0002167,2]
[330178577,1719083435406,-177.533914,0.0002167,2]
[330178578,1719083435416,-176.08934,0.0002167,2]
[330178579,1719083435425,-177.533914,0.0002167,2]
[330178580,1719083435582,-177.533914,0.0002167,2]
[330178581,1719083435591,-151.0,0.0002167,2]
[330178582,1719083435601,-151.0,0.0002167,2]
[330178583,1719083435610,-151.0,0.0002167,2]
[330178584,1719083435620,-177.533914,0.0002167,2]
[330178585,1719083435631,-177.533914,0.0002167,2]
[330178586,1719083435641,-177.533914,0.0002167,2]
[330178587,1719083435652,-177.533914,0.0002167,2]
[330178588,1719083435663,-151.0,0.0002167,2]
[330178589,1719083435672,-151.0,0.0002167,2]
[330178590,1719083435681,-151.0,0.0002167,2]
[330178591,1719083435693,-151.0,0.0002167,2]
[330178592,1719083435703,-151.0,0.0002167,2]
[330178593,1719083435712,-151.0,0.0002167,2]
[330178594,1719083435721,-151.0,0.0002167,2]
[330178595,1719083435731,-151.0,0.0002167,2]
[330178596,1719083435740,-151.0,0.0002167,2]
[330178597,1719083435751,-151.0,0.0002167,2]
[330178598,1719083435761,-263.925265,0.0002167,2]
[330178599,1719083435771,-263.925265,0.0002167,2]
[330178600,1719083435780,-263.925265,0.0002167,2]
[330178601,1719083435791,-263.925265,0.0002167,2]
[330178602,1719083435802,-263.925265,0.0002167,2]
[330178603,1719083435812,-151.0,0.0002167,2]
[330178604,1719083435823,-263.925265,0.0002167,2]
[330178605,1719083435833,-263.925265,0.0002167,2]
[330178606,1719083435842,-263.925265,0.0002167,2]
[330178607,1719083435851,-243.757524,0.0002167,2]
[330178608,1719083435860,-151.0,0.0002167,2]
[330178609,1719083435872,-151.0,0.0002167,2]
[330178610,1719083435882,-151.0,0.0002167,2]
[330178611,1719083435892,-151.0,0.0002167,2]
[330178612,1719083435901,-151.0,0.0002167,2]
[330178613,1719083435911,-151.0,0.0002167,2]
[330178614,1719083435920,-160.149024,0.0002167,2]
[330178615,1719083435929,-160.149024,0.0002167,2]
[330178616,1719083435940,-160.149024,0.0002167,2]
[330178617,1719083435949,-160.149024,0.0002167,2]
[330178618,1719083435958,-160.149024,0.0002167,2]
[330178619,1719083435968,-160.149024,0.0002167,2]
[330178620,1719083435978,-155.206249,0.0002167,2]
[330178621,1719083435987,-155.206249,0.0002167,2]
[330178622,1719083435996,-155.206249,0.0002167,2]
[330178623,1719083436006,-155.206249,0.0002167,2]
[330178624,1719083436015,-155.206249,0.0002167,2]
[330178625,1719083436025,-155.206249,0.0002167,2]
[330178626,1719083436034,-164.972598,0.0002167,2]
[330178627,1719083436043,-151.0,0.0002167,2]
[330178628,1719083436052,-151.0,0.0002167,2]
[330178629,1719083436061,-151.0,0.0002167,2]
[330178630,1719083436071,-151.0,0.0002167,2]
[330178631,1719083436080,-151.0,0.0002167,2]
[330178632,1719083436089,-151.0,0.0002167,2]
[330178633,1719083436099,-199.773548,0.0002167,2]
[330178634,1719083436108,-199.773548,0.0002167,2]
[330178635,1719083436117,-199.773548,0.0002167,2]
[330178636,1719083436127,-199.773548,0.0002167,2]
[330178637,1719083436136,-199.773548,0.0002167,2]
[330178638,1719083436145,-199.773548,0.0002167,2]
[330178639,1719083436160,-151.0,0.0002167,2]
[330178640,1719083436170,-151.0,0.0002167,2]
[330178641,1719083436180,-151.0,0.0002167,2]
[330178642,1719083436189,-928.387954,0.0002167,2]
[330178643,1719083436199,-928.387954,0.0002167,2]
[330178644,1719083436208,-928.387954,0.0002167,2]
[330178645,1719083436218,-928.387954,0.0002167,2]
[330178646,1719083436227,-928.387954,0.0002167,2]
[330178647,1719083436238,-928.387954,0.0002167,2]
[330178648,1719083436248,-201.870887,0.0002167,2]
[330178649,1719083436257,-201.870887,0.0002167,2]
[330178650,1719083436267,-201.870887,0.0002167,2]
[330178651,1719083436276,-201.870887,0.0002167,2]
[330178652,1719083436286,-201.870887,0.0002167,2]
[330178653,1719083436295,-201.870887,0.0002167,2]
[330178654,1719083436304,-151.0,0.0002167,2]
[330178655,1719083436313,-151.0,0.0002167,2]
[330178656,1719083436323,-151.0,0.0002167,2]
[330178657,1719083436333,-151.0,0.0002167,2]
[330178658,1719083436342,-151.0,0.0002167,2]
[330178659,1719083436351,-151.0,0.0002167,2]
[330178660,1719083436361,-177.409376,0.0002167,2]
[330178661,1719083436371,-177.409376,0.0002167,2]
[330178662,1719083436380,-177.409376,0.0002167,2]
[330178663,1719083436390,-177.409376,0.0002167,2]
[330178664,1719083436399,-177.409376,0.0002167,2]
[330178665,1719083436409,-177.409376,0.0002167,2]
[330178666,1719083436417,-151.0,0.0002167,2]
[330178667,1719083436427,-151.0,0.0002167,2]
[330178668,1719083436436,-151.0,0.0002167,2]
[330178669,1719083436450,-151.0,0.0002167,2]
[330178670,1719083436459,-151.0,0.0002167,2]
[330178671,1719083436469,-151.0,0.0002167,2]
[330178672,1719083436479,-151.0,0.0002167,2]
[330178673,1719083436489,-878.965384,0.0002167,2]
[330178674,1719083436498,-878.965384,0.0002167,2]
[330178675,1719083436508,-878.965384,0.0002167,2]
[330178676,1719083436517,-341.629375,0.0002167,2]
[330178677,1719083436527,-341.629375,0.0002167,2]
[330178678,1719083436536,-341.629375,0.0002167,2]
[330178679,1719083436546,-341.629375,0.0002167,2]
[330178680,1719083436556,-341.629375,0.0002167,2]
[330178681,1719083436566,-341.629375,0.0002167,2]
[330178682,1719083436576,-151.0,0.0002167,2]
[330178683,1719083436585,-151.0,0.0002167,2]
[330178684,1719083436595,-151.0,0.0002167,2]
[330178685,1719083436605,-173.504069,0.0002167,2]
[330178686,1719083436614,-574.583066,0.0002167,2]
[330178687,1719083436624,-574.583066,0.0002167,2]
[330178688,1719083436636,-574.583066,0.0002167,2]
[330178689,1719083436645,-574.583066,0.0002167,2]
[330178690,1719083436655,-574.583066,0.0002167,2]
[330178691,1719083436665,-574.583066,0.0002167,2]
[330178692,1719083436674,-151.0,0.0002167,2]
[330178693,1719083436684,-151.0,0.0002167,2]
[330178694,1719083436693,-151.0,0.0002167,2]
[330178695,1719083436702,-151.0,0.0002167,2]
[330178696,1719083436712,-151.0,0.0002167,2]
[330178697,1719083436721,-185.153143,0.0002167,2]
[330178698,1719083436731,-185.153143,0.0002167,2]
[330178699,1719083436741,-185.153143,0.0002167,2]
[330178700,1719083436750,-185.153143,0.0002167,2]
[330178701,1719083436760,-185.153143,0.0002167,2]
[330178702,1719083436769,-185.153143,0.0002167,2]
[330178703,1719083436779,-151.0,0.0002167,2]
[330178704,1719083436789,-151.0,0.0002167,2]
[330178705,1719083436798,-151.0,0.0002167,2]
[330178706,1719083436809,-279.791995,0.0002167,2]
[330178707,1719083436819,-151.0,0.0002167,2]
[330178708,1719083436829,-151.0,0.0002167,2]
[330178709,1719083436839,-151.0,0.0002167,2]
[330178710,1719083436850,-151.0,0.0002167,2]
[330178711,1719083436859,-151.0,0.0002167,2]
[330178712,1719083436870,-151.0,0.0002167,2]
[330178713,1719083436879,-151.0,0.0002167,2]
[330178714,1719083436890,-151.0,0.0002167,2]
[330178715,1719083436900,-151.0,0.0002167,2]
[330178716,1719083436910,-479.764918,0.0002167,2]
[330178717,1719083436919,-479.764918,0.0002167,2]
[330178718,1719083436930,-479.764918,0.0002167,2]
[330178719,1719083436940,-479.764918,0.0002167,2]
[330178720,1719083436949,-479.764918,0.0002167,2]
[330178721,1719083436959,-151.0,0.0002167,2]
[330178722,1719083436969,-479.764918,0.0002167,2]
[330178723,1719083436979,-151.0,0.0002167,2]
[330178724,1719083436989,-151.0,0.0002167,2]
[330178725,1719083436999,-151.0,0.0002167,2]
[330178726,1719083437008,-151.0,0.0002167,2]
[330178727,1719083437018,-151.0,0.0002167,2]
[330178728,1719083437028,-151.0,0.0002167,2]
[330178729,1719083437039,-151.0,0.0002167,2]
[330178730,1719083437048,-151.0,0.0002167,2]
[330178731,1719083437058,-150000.0,0.0002167,2]
[330178732,1719083437071,-63813.86196865,0.0002167,2]
[330178733,1719083437096,-86186.13803135,0.0002167,2]
[330178734,1719083437106,-150000.0,0.0002167,2]
[330178735,1719083437115,-927.77288175,0.0002167,2]
[330178736,1719083437125,-11208.9548402,0.0002168,2]
[330178737,1719083437134,-296.42510962,0.00021689,2]
[330178738,1719083437144,-6541.54480729,0.0002169,2]
[330178739,1719083437159,-150.0,0.00021691,2]
[330178740,1719083437169,-425.04400273,0.00021692,2]
[330178741,1719083437179,-186.58298051,0.00021694,2]
[330178742,1719083437189,-33626.8645207,0.00021695,2]
[330178743,1719083437203,-11208.9548402,0.00021695,2]
[330178744,1719083437213,-151.0,0.00021695,2]
[330178745,1719083437223,-151.0,0.00021695,2]
[330178746,1719083437236,-151.0,0.00021695,2]
[330178747,1719083437246,-479.764918,0.00021695,2]
[330178748,1719083437256,-479.764918,0.00021695,2]
[330178749,1719083437266,-151.0,0.00021695,2]
[330178750,1719083437275,-249.834445,0.00021695,2]
[330178751,1719083437284,-151.0,0.00021695,2]
[330178752,1719083437294,-8500.0,0.000217,7]
[330178753,1719083437303,-151.0,0.000217,2]
[330178754,1719083437312,-33626.8645207,0.00021705,2]
[330178755,1719083437324,-17740.07237029,0.00021705,2]
[330178756,1719083437336,-9755.12931968,0.00021705,2]
[330178757,1719083437348,-5775.04816247,0.00021705,2]
[330178758,1719083437360,-428.32614833,0.00021705,2]
[330178773,1719083439309,-351.92,0.00016598,2]
[330178774,1719083439322,-91.48212819,0.00016598,2]
[330178775,1719083439332,-526.33456498,0.00020441,2]
[330178776,1719083439342,-527.94009131,0.00020441,2]
[330178777,1719083439352,-1285.40729279,0.000208,2]
[330178778,1719083439363,-155.0,0.00020812,2]
[330178779,1719083439373,-378.49941491,0.00020887,2]
[330178780,1719083439383,-150.0,0.0002115,2]
[330178781,1719083439394,-387.81521761,0.00021632,2]
[330178782,1719083439403,-387.81521761,0.00021678,2]
[330178783,1719083439415,-3177.09126791,0.00021705,2]
[330178784,1719083439427,-5128.36503693,0.00021705,2]
[330178785,1719083439440,-8103.98650228,0.00021705,2]
[330178786,1719083439567,-1239.18,0.00021705,2]
[330178787,1719083439580,-98652.80119211,0.00021705,2]
[330178788,1719083439590,-150000.0,0.00021705,2]
[330178789,1719083439600,-151.0,0.00021705,2]
[330178790,1719083439610,-199.773548,0.00021705,2]
[330178791,1719083439623,-199.773548,0.00021705,2]
[330178792,1719083439634,-190.590203,0.00021705,2]
[330178793,1719083439645,-928.387954,0.00021705,2]
[330178794,1719083439656,-928.387954,0.00021705,2]
[330178795,1719083439667,-201.870887,0.00021705,2]
[330178796,1719083439677,-201.870887,0.00021705,2]
[330178797,1719083439687,-151.0,0.00021705,2]
[330178798,1719083439698,-151.0,0.00021705,2]
[330178799,1719083439708,-177.409376,0.00021705,2]
[330178800,1719083439719,-177.409376,0.00021705,2]
[330178801,1719083439728,-241.429869,0.00021705,2]
[330178802,1719083439738,-878.965384,0.00021705,2]
[330178803,1719083439748,-341.629375,0.00021705,2]
[330178804,1719083439758,-341.629375,0.00021705,2]
[330178805,1719083439768,-574.583066,0.00021705,2]
[330178806,1719083439780,-574.583066,0.00021705,2]
[330178807,1719083439790,-225.913929,0.00021705,2]
[330178808,1719083439800,-185.153143,0.00021705,2]
[330178809,1719083439809,-185.153143,0.00021705,2]
[330178810,1719083439820,-150000.0,0.00021706,2]
[330178811,1719083439830,-151.0,0.00021706,2]
[330178812,1719083439839,-151.0,0.00021706,2]
[330178813,1719083439849,-151.0,0.00021706,2]
[330178814,1719083439860,-479.764918,0.00021706,2]
[330178815,1719083439870,-479.764918,0.00021706,2]
[330178816,1719083439880,-151.0,0.00021706,2]
[330178817,1719083439890,-151.0,0.00021706,2]
[330178818,1719083439900,-263.42284993,0.00021707,2]
[330178819,1719083439910,-901.0,0.00021715,2]
[330178820,1719083439919,-142780.89674663,0.00021715,2]
[330178821,1719083439929,-151.0,0.00021715,2]
[330178822,1719083439940,-155.688602,0.00021715,2]
[330178823,1719083439950,-176.08934,0.00021715,2]
[330178824,1719083439960,-176.08934,0.00021715,2]
[330178825,1719083439970,-177.533914,0.00021715,2]
[330178826,1719083439980,-151.0,0.00021715,2]
[330178827,1719083439990,-263.925265,0.00021715,2]
[330178828,1719083439999,-263.925265,0.00021715,2]
[330178829,1719083440009,-151.0,0.00021715,2]
[330178830,1719083440019,-160.149024,0.00021715,2]
[330178831,1719083440029,-160.149024,0.00021715,2]
[330178832,1719083440038,-155.206249,0.00021715,2]
[330178833,1719083440048,-155.206249,0.00021715,2]
[330178834,1719083440058,-256.085642,0.00021715,2]
[330178835,1719083440069,-151.0,0.00021715,2]
[330178836,1719083440079,-199.773548,0.00021715,2]
[330178837,1719083440089,-199.773548,0.00021715,2]
[330178838,1719083440099,-928.387954,0.00021715,2]
[330178839,1719083440108,-928.387954,0.00021715,2]
[330178840,1719083440118,-201.870887,0.00021715,2]
[330178841,1719083440128,-201.870887,0.00021715,2]
[330178842,1719083440138,-151.0,0.00021715,2]
[330178843,1719083440148,-151.0,0.00021715,2]
[330178844,1719083440162,-177.409376,0.00021715,2]
[330178845,1719083440172,-177.409376,0.00021715,2]
[330178846,1719083440378,-878.965384,0.00021715,2]
[330178847,1719083440392,-341.629375,0.00021715,2]
[330178848,1719083440402,-341.629375,0.00021715,2]
[330178849,1719083440412,-574.583066,0.00021715,2]
[330178850,1719083440422,-574.583066,0.00021715,2]
[330178851,1719083440431,-185.153143,0.00021715,2]
[330178852,1719083440442,-185.153143,0.00021715,2]
[330178853,1719083440452,-151.0,0.00021715,2]
[330178854,1719083440465,-151.0,0.00021715,2]
[330178855,1719083440475,-151.0,0.00021715,2]
[330178856,1719083440485,-151.0,0.00021715,2]
[330178857,1719083440496,-237.504646,0.00021715,2]
[330178858,1719083440506,-479.764918,0.00021715,2]
[330178859,1719083440516,-479.764918,0.00021715,2]
[330178860,1719083440525,-479.764918,0.00021715,2]
[330178861,1719083440534,-479.764918,0.00021715,2]
[330178862,1719083440544,-151.0,0.00021715,2]
[330178863,1719083440553,-151.0,0.00021715,2]
[330178864,1719083440563,-151.0,0.00021715,2]
[330178865,1719083440572,-151.0,0.00021715,2]
[330178866,1719083440582,-150000.0,0.00021715,2]
[330178867,1719083440592,-150.0,0.00021717,2]
[330178868,1719083440601,-155.0,0.00021734,2]
[330178869,1719083440611,-1492.96316394,0.00021734,2]
[330178870,1719083440621,-1000.0,0.00021735,2]
[330178871,1719083440630,-500.0,0.00021741,2]
[330178872,1719083440640,-200.0,0.00021741,2]
[330178873,1719083440649,-1000.0,0.00021742,2]
[330178874,1719083440659,-500.0,0.00021742,2]
[330178876,1719083440669,-500.0,0.00021742,2]
[330178878,1719083440678,-200.0,0.00021742,2]
[330178880,1719083440688,-2000.0,0.00021749,2]
[330178882,1719083440701,-200.0,0.00021749,2]
[330178884,1719083440710,-2000.0,0.00021749,2]
[330178886,1719083440719,-200.0,0.00021749,2]
[330178888,1719083440728,-2000.0,0.00021749,2]
[330178890,1719083440738,-200.0,0.00021749,2]
[330178893,1719083440748,-878.965384,0.00021749,2]
[330178895,1719083440757,-878.965384,0.00021749,2]
[330178896,1719083440767,-878.965386,0.00021749,2]
[330178897,1719083440777,-341.629375,0.00021749,2]
[330178898,1719083440786,-341.629375,0.00021749,2]
[330178899,1719083440796,-341.629375,0.00021749,2]
[330178900,1719083440805,-341.629375,0.00021749,2]
[330178901,1719083440815,-341.629375,0.00021749,2]
[330178902,1719083440824,-341.629373,0.00021749,2]
[330178903,1719083440834,-574.583066,0.00021749,2]
[330178904,1719083440843,-574.583066,0.00021749,2]
[330178905,1719083440853,-574.583066,0.00021749,2]
[330178906,1719083440862,-574.583066,0.00021749,2]
[330178907,1719083440872,-574.583066,0.00021749,2]
[330178908,1719083440881,-574.583056,0.00021749,2]
[330178909,1719083440891,-185.153143,0.00021749,2]
[330178910,1719083440900,-185.153143,0.00021749,2]
[330178911,1719083440909,-185.153143,0.00021749,2]
[330178912,1719083440918,-185.153143,0.00021749,2]
[330178913,1719083440927,-185.153143,0.00021749,2]
[330178914,1719083440937,-185.153145,0.00021749,2]
[330178915,1719083440947,-151.0,0.00021749,2]
[330178916,1719083440957,-2000.0,0.00021749,2]
[330178917,1719083440966,-200.0,0.00021749,2]
[330178918,1719083440976,-479.764918,0.00021749,2]
[330178919,1719083440985,-479.76491,0.00021749,2]
[330178920,1719083440995,-151.0,0.00021749,2]
[330178921,1719083441003,-150000.0,0.00021749,2]
[330178922,1719083441012,-150000.0,0.00021749,2]
[330178923,1719083441022,-150000.0,0.00021749,2]
[330178924,1719083441031,-150000.0,0.00021749,2]
[330178925,1719083441040,-425.04400273,0.00021755,2]
[330178926,1719083441049,-150.0,0.00021777,2]
[330178927,1719083441058,-1524.39526714,0.00021779,2]
[330178928,1719083441068,-928.387954,0.0002179,2]
[330178929,1719083441077,-928.387954,0.0002179,2]
[330178930,1719083441086,-201.870887,0.0002179,2]
[330178931,1719083441097,-201.870887,0.0002179,2]
[330178932,1719083441108,-151.0,0.0002179,2]
[330178933,1719083441118,-151.0,0.0002179,2]
[330178934,1719083441129,-177.409376,0.0002179,2]
[330178935,1719083441139,-177.409376,0.0002179,2]
[330178936,1719083441149,-150.0,0.00021796,2]
[330178937,1719083441163,-1700.0,0.000218,7]
[330178938,1719083441172,-60000.0,0.000218,3]
[330178939,1719083441181,-186.788865,0.000218,2]
[330178940,1719083441191,-155.688602,0.000218,2]
[330178941,1719083441201,-176.08934,0.000218,2]
[330178942,1719083441210,-176.08934,0.000218,2]
[330178943,1719083441220,-177.533914,0.000218,2]
[330178944,1719083441230,-177.533914,0.000218,2]
[330178945,1719083441241,-151.0,0.000218,2]
[330178946,1719083441251,-263.925265,0.000218,2]
[330178947,1719083441261,-263.925265,0.000218,2]
[330178948,1719083441271,-151.0,0.000218,2]
[330178949,1719083441280,-160.149024,0.000218,2]
[330178950,1719083441289,-160.149024,0.000218,2]
[330178951,1719083441298,-155.206249,0.000218,2]
[330178952,1719083441308,-155.206249,0.000218,2]
[330178953,1719083441318,-151.0,0.000218,2]
[330178954,1719083441328,-199.773548,0.000218,2]
[330178955,1719083441336,-199.773548,0.000218,2]
[330178956,1719083441346,-928.387954,0.000218,2]
[330178957,1719083441355,-928.387954,0.000218,2]
[330178958,1719083441364,-201.870887,0.000218,2]
[330178959,1719083441374,-201.870887,0.000218,2]
[330178960,1719083441383,-151.0,0.000218,2]
[330178961,1719083441393,-255.378048,0.000218,2]
[330178962,1719083441402,-177.409376,0.000218,2]
[330178963,1719083441412,-177.409376,0.000218,2]
[330178964,1719083441422,-300.0,0.00021801,2]
[330178965,1719083441432,-660.88004316,0.00021805,2]
[330178966,1719083441441,-6541.54480729,0.0002181,2]
[330178967,1719083441451,-368.35287948,0.00021816,2]
[330178968,1719083441461,-177.32791547,0.00021817,2]
[330178969,1719083441472,-186.58298051,0.00021817,2]
[330178970,1719083441481,-425.04400273,0.00021817,2]
[330178971,1719083441490,-150.0,0.00021843,2]
[330178972,1719083441499,-150.0,0.00021893,2]
[330178973,1719083441509,-151.0,0.00021897,2]
[330178974,1719083441518,-199.773548,0.00021897,2]
[330178975,1719083441527,-199.773548,0.00021897,2]
[330178976,1719083441537,-928.387954,0.00021897,2]
[330178977,1719083441546,-928.387953,0.00021897,2]
[330178978,1719083441556,-201.870887,0.00021897,2]
[330178979,1719083441565,-201.870886,0.00021897,2]
[330178980,1719083441575,-182.622953,0.00021897,2]
[330178981,1719083441584,-177.409376,0.00021897,2]
[330178982,1719083441593,-177.409384,0.00021897,2]
[330178983,1719083441603,-1700.0,0.000219,7]
[330178984,1719083441612,-150.0,0.00021903,2]
[330178985,1719083441622,-90204.49061674,0.00021907,3]
[330178986,1719083441631,-155.688602,0.00021907,2]
[330178987,1719083441640,-176.08934,0.00021907,2]
[330178988,1719083441650,-176.08934,0.00021907,2]
[330178989,1719083441659,-177.533914,0.00021907,2]
[330178990,1719083441668,-177.533914,0.00021907,2]
[330178991,1719083441678,-151.0,0.00021907,2]
[330178992,1719083441687,-263.925265,0.00021907,2]
[330178993,1719083441697,-263.925265,0.00021907,2]
[330178994,1719083441706,-151.0,0.00021907,2]
[330178995,1719083441716,-160.149024,0.00021907,2]
[330178996,1719083441725,-160.149024,0.00021907,2]
[330178997,1719083441734,-155.206249,0.00021907,2]
[330178998,1719083441743,-155.206249,0.00021907,2]
[330178999,1719083441752,-208.738559,0.00021907,2]
[330179000,1719083441762,-199.773548,0.00021907,2]
[330179001,1719083441771,-199.773541,0.00021907,2]
[330179002,1719083441780,-15146.71703197,0.00021909,2]
[330179003,1719083441789,-1327.1842384,0.00021911,2]
[330179004,1719083441798,-1507.0311657,0.00021911,2]
[330179005,1719083441808,-8139.7612875,0.00021911,2]
[330179006,1719083441817,-1500.0,0.00021913,2]
[330179007,1719083441827,-150.0,0.00021915,2]
[330179008,1719083441836,-543.83180554,0.00021915,2]
[330179009,1719083441845,-349720.4949622,0.00021916,7]
[330179010,1719083441854,-22017.20263049,0.00021916,2]
[330179011,1719083442447,-456.60486029,0.00021916,2]
[330179012,1719083442459,-684.36893559,0.00021916,2]
[330179013,1719083442470,-3332.97664968,0.00021916,2]
[330179014,1719083442481,-589.98973099,0.00021916,2]
[330179015,1719083442492,-1014.4073902,0.00021916,2]
[330179016,1719083442503,-3021.85448745,0.00021916,2]
[330179017,1719083442536,-1000.0,0.00021916,2]
[330179018,1719083443074,-519.86065789,0.00021689,2]
[330179019,1719083443095,-41424.52660658,0.00021916,2]
[330179020,1719083443114,-1109.59484438,0.00021916,2]
[330179021,1719083443133,-647.526547,0.00021916,2]
[330179022,1719083443152,-739.70005,0.00021916,2]
[330179023,1719083443249,-3849.9343639,0.00021916,2]
[330179024,1719083443268,-2502.2473454,0.00021916,2]
[330179025,1719083443286,-306.03178864,0.00021916,2]
[330179026,1719083443305,-10066.03213401,0.00021916,2]
[330179027,1719083443324,-23984.54265119,0.00021916,2]
[330179028,1719083443345,-664.0,0.00021916,2]
[330179029,1719083443364,-11129.60899707,0.00021916,2]
[330179030,1719083443383,-881.37761926,0.00021916,2]
[330179031,1719083443401,-548.60584915,0.00021916,2]
[330179032,1719083443420,-4152.6765132,0.00021916,2]
[330179033,1719083443438,-3206.43188161,0.00021916,2]
[330179034,1719083443667,-472.23500019,0.00021916,2]
[330179035,1719083443686,-870.83827032,0.00021916,2]
[330179036,1719083443706,-63479.83511815,0.00021916,2]
[330179040,1719083444993,-387.81521761,0.00021724,2]
[330179041,1719083445002,-920.86453371,0.00021916,2]
[330179042,1719083445014,-446.14741197,0.00021916,2]
[330179043,1719083445026,-292.10250999,0.00021916,2]
[330179044,1719083445037,-325.48615995,0.00021916,2]
[330179045,1719083445048,-3663.2031848,0.00021916,2]
[330179046,1719083445059,-696.65702926,0.00021916,2]
[330179047,1719083445070,-2413.1393478,0.00021916,2]
[330179052,1719083446172,-439.482692,0.0002167,2]
[330179053,1719083446182,-439.482692,0.0002167,2]
[330179054,1719083446192,-810.0,0.00021705,2]
[330179055,1719083446202,-4290.43856553,0.00021916,2]
[330179058,1719083446215,-732.25253567,0.00021916,2]
[330179060,1719083446226,-4384.035,0.00021916,2]
[330179061,1719083446240,-5958.30201139,0.00021916,2]
[330179062,1719083446253,-613.29430783,0.00021916,2]
[330179063,1719083446264,-655.0,0.00021916,2]